[Event "12th National Schools-ch 2024"]
[Site "Gyan Bhawan Patna"]
[Date "2024.02.08"]
[Round "5.2"]
[White "Aarit Kapil"]
[Black "Oishik Mondal"]
[Result "0-1"]
[ECO "B86"]
[WhiteElo "1494"]
[BlackElo "1524"]
[Annotator "NA RC"]
[PlyCount "114"]
[EventDate "2024.02.05"]
[EventCountry "IND"]
[SourceTitle "playchess.com"]
[Source "ChessBase"]
[SourceQuality "1"]
[TimeControl "5400+30"]

1. e4 {[%emt 0:00:03]} c5 {[%emt 0:00:10]} 2. Nf3 {[%emt 0:00:06]} d6 {[%emt 0:00:09]} 3. d4 {[%emt 0:00:04]} cxd4 {[%emt 0:00:08]} 4. Nxd4 {[%emt 0:00:06]} Nf6 {[%emt 0:00:12]} 5. Nc3 {[%emt 0:00:05]} a6 {[%emt 0:00:07]} 6. Bc4 {[%emt 0:00:04]} e6 {[%emt 0:00:11]} 7. Bb3 {[%emt 0:00:04]} Be7 {[%emt 0:00:10]} 8. O-O {[%emt 0:00:08]} O-O {[%emt 0:00:15]} 9. Be3 {[%emt 0:00:14]} Nbd7 {[%emt 0:01:11]} 10. f3 {[%emt 0:00:30]} Nc5 {[%emt 0:00:35]} 11. Bc4 {[%emt 0:00:41]} b5 {[%emt 0:03:42]} 12. Nc6 {[%emt 0:00:15]} Qc7 {[%emt 0:00:21]} 13. Nxe7+ {[%emt 0:00:09]} Qxe7 {[%emt 0:00:09]} 14. Be2 {[%emt 0:00:03]} b4 {[%emt 0:01:31]} 15. Nb1 {[%emt 0:00:33]} Bb7 {[%emt 0:01:44]} 16. Qd2 {[%emt 0:01:34]} a5 {[%emt 0:00:32]} 17. Rd1 {[%emt 0:00:18]} Rfd8 {[%emt 0:00:32]} 18. a3 {[%emt 0:01:53]} b3 {[%emt 0:00:55]} 19. Nc3 {[%emt 1:33:10]} Rac8 {[%emt 1:27:26]} 20. Rac1 {[%emt 0:00:00]} d5 {[%emt 0:00:00]} 21. e5 {[%emt 0:00:00]} Ne8 {[%emt 0:00:00]} 22. Bd4 {[%emt 0:00:00]} a4 {[%emt 0:00:00]} 23. Bxc5 {[%emt 0:00:00]} Qxc5+ {[%emt 0:00:00]} 24. Qd4 {[%emt 0:00:00]} bxc2 {[%emt 0:00:00]} 25. Rxc2 {[%emt 0:00:00]} f6 {[%emt 0:00:00]} 26. f4 {[%emt 0:00:00]} Rc7 {[%emt 0:00:00]} 27. Bb5 {[%emt 0:00:00]} Qxd4+ {[%emt 0:00:00]} 28. Rxd4 {[%emt 0:00:00]} Bc6 {[%emt 0:00:00]} 29. Bxa4 {[%emt 0:00:00]} Bxa4 {[%emt 0:00:00]} 30. Rxa4 {[%emt 0:00:00]} d4 {[%emt 0:00:00]} 31. Rd2 {[%emt 0:00:00]} dxc3 {[%emt 0:00:00]} 32. Rc2 {[%emt 0:00:00]} fxe5 {[%emt 0:00:00]} 33. fxe5 {[%emt 0:00:00]} Rf7 {[%emt 0:00:00]} 34. h3 {[%emt 0:00:00]} cxb2 {[%emt 0:00:00]} 35. Rxb2 {[%emt 0:00:00]} Nc7 {[%emt 0:00:00]} 36. Rb6 {[%emt 0:00:00]} h6 {[%emt 0:00:00]} 37. Rc4 {[%emt 0:00:00]} Nd5 {[%emt 0:00:00]} 38. Rxe6 {[%emt 0:09:30]} Ne3 {[%emt 0:00:00]} 39. Rcc6 {[%emt 0:00:00]} Rd1+ {[%emt 0:00:00]} 40. Kh2 {[%emt 0:00:00]} Nf1+ {[%emt 0:00:00]} 41. Kg1 {[%emt 0:00:00]} Ng3+ {[%emt 0:00:00]} 42. Kh2 {[%emt 0:00:00]} Nh5 {[%emt 0:00:00]} 43. Re8+ {[%emt 0:00:00]} Kh7 {[%emt 0:00:00]} 44. h4 {[%emt 0:00:00]} Rff1 {[%emt 0:00:00]} 45. Kh3 {[%emt 0:00:00]} Rd3+ {[%emt 0:00:00]} 46. Kh2 {[%emt 0:00:00]} Rdd1 {[%emt 0:00:00]} 47. Kh3 {[%emt 0:00:00]} Nf4+ {[%emt 0:00:00]} 48. Kg4 {[%emt 0:00:00]} h5+ {[%emt 0:00:00]} 49. Kg5 {[%emt 0:00:00]} Rd4 {[%emt 0:00:00]} 50. Rd6 {[%emt 0:00:00]} Re4 {[%emt 0:00:00]} 51. Kf5 {[%emt 0:00:00]} Ra4 {[%emt 0:00:00]} 52. Rdd8 {[%emt 0:00:00]} Ng6+ {[%emt 0:00:00]} 53. Kg5 {[%emt 0:00:00]} Rg4+ {[%emt 0:00:00]} 54. Kxh5 {[%emt 0:00:00]} Rg3 {[%emt 0:00:00]} 55. Rh8+ {[%emt 0:00:00]} Nxh8 {[%emt 0:00:00]} 56. Rxh8+ {[%emt 0:00:00]} Kxh8 {[%emt 0:00:00]} 57. e6 {[%emt 0:00:00]} Rf5# {[%emt 0:00:00]} 0-1

[Event "12th National Schools-ch 2024"]
[Site "Gyan Bhawan Patna"]
[Date "2024.02.08"]
[Round "5.3"]
[White "Pratitee Bordoloi"]
[Black "Pal Vedika"]
[Result "1/2-1/2"]
[ECO "B33"]
[WhiteElo "1408"]
[BlackElo "1539"]
[Annotator "NA RC"]
[PlyCount "125"]
[EventDate "2024.02.05"]
[EventCountry "IND"]
[SourceTitle "playchess.com"]
[Source "ChessBase"]
[SourceQuality "1"]
[TimeControl "5400+30"]

1. e4 {[%emt 0:00:03]} c5 {[%emt 0:03:38]} 2. Nf3 {[%emt 0:00:15]} Nc6 {[%emt 0:00:35]} 3. d4 {[%emt 0:00:14]} cxd4 {[%emt 0:00:02]} 4. Nxd4 {[%emt 0:00:10]} Nf6 {[%emt 0:00:07]} 5. Nc3 {[%emt 0:00:11]} e5 {[%emt 0:00:28]} 6. Ndb5 {[%emt 0:00:24]} d6 {[%emt 0:00:32]} 7. Bg5 {[%emt 0:00:18]} a6 {[%emt 0:01:13]} 8. Na3 {[%emt 0:00:28]} b5 {[%emt 0:00:50]} 9. Nd5 {[%emt 0:00:14]} Be7 {[%emt 0:00:02]} 10. Bxf6 {[%emt 0:00:18]} Bxf6 {[%emt 0:02:30]} 11. c4 {[%emt 0:00:20]} b4 {[%emt 0:01:16]} 12. Nc2 {[%emt 0:00:19]} a5 {[%emt 0:01:14]} 13. Be2 {[%emt 0:01:11]} O-O {[%emt 0:05:06]} 14. Qd3 {[%emt 0:00:53]} Bg5 {[%emt 0:06:26]} 15. O-O {[%emt 0:00:42]} Be6 {[%emt 0:01:51]} 16. Rad1 {[%emt 0:02:02]} Qb8 {[%emt 0:04:57]} 17. b3 {[%emt 0:09:11]} h6 {[%emt 0:23:08]} 18. Qg3 {[%emt 0:13:24]} Qd8 {[%emt 0:11:38]} 19. Bg4 {[%emt 0:16:14]} Bxg4 {[%emt 0:10:44]} 20. Qxg4 {[%emt 0:00:17]} a4 {[%emt 0:03:06]} 21. g3 {[%emt 0:08:17]} axb3 {[%emt 0:05:32]} 22. axb3 {[%emt 0:00:15]} Qa5 {[%emt 0:02:16]} 23. h4 {[%emt 0:02:03]} f5 {[%emt 0:14:49]} 24. exf5 {[%emt 0:07:21]} Bf6 {[%emt 0:00:00]} 25. Ra1 {[%emt 0:03:27]} Qd8 {[%emt 0:00:00]} 26. Rxa8 {[%emt 0:01:09]} Qxa8 {[%emt 0:00:00]} 27. Ra1 {[%emt 0:01:47]} Qc8 {[%emt 0:00:00]} 28. Ra4 {[%emt 0:03:27]} Kh8 {[%emt 0:00:00]} 29. Ncxb4 {[%emt 0:04:34]} Nd4 {[%emt 0:00:00]} 30. Ra7 {[%emt 0:01:43]} Nxf5 {[%emt 0:00:00]} 31. Nxf6 {[%emt 0:02:29]} Rxf6 {[%emt 0:00:31]} 32. Nd5 {[%emt 0:00:58]} Rf8 {[%emt 0:00:43]} 33. Nc7 {[%emt 0:07:24]} Nd4 {[%emt 0:02:51]} 34. Qxc8 {[%emt 0:00:58]} Rxc8 {[%emt 0:00:02]} 35. Ra8 {[%emt 0:05:52]} Rxa8 {[%emt 0:00:02]} 36. Nxa8 {[%emt 0:00:06]} Nxb3 {[%emt 0:00:17]} 37. Nb6 {[%emt 0:00:31]} Nd2 {[%emt 0:01:01]} 38. Kg2 {[%emt 0:01:15]} Kg8 {[%emt 0:00:33]} 39. f3 {[%emt 0:01:00]} Kf7 {[%emt 0:00:11]} 40. Kf2 {[%emt 0:00:27]} Ke6 {[%emt 0:01:01]} 41. Ke2 {[%emt 0:00:45]} Nb3 {[%emt 0:00:17]} 42. Ke3 {[%emt 0:00:33]} Nc5 {[%emt 0:00:55]} 43. Nd5 {[%emt 0:01:13]} Na4 {[%emt 0:00:49]} 44. Ke4 {[%emt 0:01:11]} g6 {[%emt 0:00:32]} 45. g4 {[%emt 0:00:30]} Nc5+ {[%emt 0:00:24]} 46. Ke3 {[%emt 0:00:09]} Nb7 {[%emt 0:00:25]} 47. Ke4 {[%emt 0:00:41]} Nd8 {[%emt 0:00:30]} 48. f4 {[%emt 0:01:37]} Nc6 {[%emt 0:00:38]} 49. f5+ {[%emt 0:01:09]} gxf5+ {[%emt 0:00:13]} 50. gxf5+ {[%emt 0:00:11]} Kf7 {[%emt 0:00:35]} 51. Ne3 {[%emt 0:00:39]} Ne7 {[%emt 0:00:36]} 52. c5 {[%emt 0:01:01]} dxc5 {[%emt 0:00:20]} 53. Kxe5 {[%emt 0:00:44]} h5 {[%emt 0:00:24]} 54. Kd6 {[%emt 0:02:43]} Kf6 {[%emt 0:00:52]} 55. Kxc5 {[%emt 0:00:14]} Ke5 {[%emt 0:00:40]} 56. Kc4 {[%emt 0:01:15]} Ng8 {[%emt 0:00:31]} 57. Kd3 {[%emt 0:00:19]} Nf6 {[%emt 0:00:24]} 58. Ke2 {[%emt 0:00:15]} Ke4 {[%emt 0:00:24]} 59. Kf2 {[%emt 0:00:24]} Kf4 {[%emt 0:00:17]} 60. Ng2+ {[%emt 0:00:37]} Kg4 {[%emt 0:00:50]} 61. Ke3 {[%emt 0:00:49]} Kg3 {[%emt 0:00:33]} 62. Nf4 {[%emt 0:00:25]} Kxh4 {[%emt 0:00:20]} 63. Nxh5 {[%emt 0:00:16]} 1/2-1/2

[Event "12th National Schools-ch 2024"]
[Site "Gyan Bhawan Patna"]
[Date "2024.02.08"]
[Round "5.4"]
[White "Andalamala Hemal Varshan"]
[Black "Mishra Manish"]
[Result "*"]
[ECO "B40"]
[WhiteElo "1578"]
[BlackElo "1333"]
[Annotator "NA RC"]
[PlyCount "77"]
[EventDate "2024.02.05"]
[EventCountry "IND"]
[SourceTitle "playchess.com"]
[Source "ChessBase"]
[SourceQuality "1"]
[TimeControl "5400+30"]

1. e4 {[%emt 0:00:51]} c5 {[%emt 0:00:16]} 2. Nf3 {[%emt 0:00:28]} e6 {[%emt 0:00:12]} 3. b3 {[%emt 0:00:09]} d5 {[%emt 0:00:15]} 4. exd5 {[%emt 0:00:39]} exd5 {[%emt 0:00:12]} 5. Bb5+ {[%emt 0:02:14]} Bd7 {[%emt 0:00:34]} 6. Bxd7+ {[%emt 0:00:13]} Nxd7 {[%emt 0:01:13]} 7. O-O {[%emt 0:00:11]} Bd6 {[%emt 0:03:21]} 8. Bb2 {[%emt 0:03:07]} Ngf6 {[%emt 0:06:16]} 9. Re1+ {[%emt 0:00:58]} Kf8 {[%emt 0:00:27]} 10. d4 {[%emt 0:00:56]} Qb6 {[%emt 0:06:02]} 11. Nc3 {[%emt 0:02:20]} c4 {[%emt 0:01:52]} 12. Ne5 {[%emt 0:01:52]} cxb3 {[%emt 0:10:33]} 13. axb3 {[%emt 0:02:23]} Qd8 {[%emt 0:06:06]} 14. Qf3 {[%emt 0:14:52]} Nb6 {[%emt 0:02:38]} 15. Ne2 {[%emt 0:04:30]} g6 {[%emt 0:09:31]} 16. c4 {[%emt 0:01:26]} Bb4 {[%emt 0:04:17]} 17. Red1 {[%emt 0:02:45]} Kg7 {[%emt 0:01:07]} 18. Nf4 {[%emt 0:01:35]} Re8 {[%emt 0:06:43]} 19. c5 {[%emt 0:02:10]} Nc8 {[%emt 0:38:25]} 20. Nfd3 {[%emt 0:03:03]} Ba5 {[%emt 0:03:26]} 21. b4 {[%emt 0:08:31]} Bc7 {[%emt 0:00:36]} 22. Bc1 {[%emt 0:00:41]} h6 {[%emt 0:06:51]} 23. Bxh6+ {[%emt 0:00:43]} Kg8 {[%emt 0:00:45]} 24. Bg5 {[%emt 0:00:46]} Kg7 {[%emt 0:00:25]} 25. Ng4 {[%emt 0:02:04]} Re6 {[%emt 0:01:14]} 26. Re1 {[%emt 0:01:25]} Nxg4 {[%emt 0:00:43]} 27. Bxd8 {[%emt 0:00:29]} Bxd8 {[%emt 0:00:06]} 28. Rxe6 {[%emt 0:00:18]} Nxh2 {[%emt 0:00:07]} 29. Kxh2 {[%emt 0:00:22]} fxe6 {[%emt 0:00:04]} 30. Ne5 {[%emt 0:00:03]} Bf6 {[%emt 0:00:14]} 31. Qg4 {[%emt 0:00:13]} g5 {[%emt 0:00:09]} 32. Qxe6 {[%emt 0:00:12]} Bxe5+ {[%emt 0:00:04]} 33. dxe5 {[%emt 0:00:10]} d4 {[%emt 0:00:14]} 34. Qf6+ {[%emt 0:00:15]} Kg8 {[%emt 0:29:51]} 35. Kg3 {[%emt 0:00:08]} Ne7 {[%emt 0:00:05]} 36. Qxe7 {[%emt 0:00:11]} d3 {[%emt 0:00:02]} 37. Rh1 {[%emt 0:00:09]} d2 {[%emt 0:00:08]} 38. Qf6 {[%emt 0:00:06]} d1=Q {[%emt 0:00:07]} 39. Rh8# {[%emt 0:46:32]} *

[Event "12th National Schools-ch 2024"]
[Site "Gyan Bhawan Patna"]
[Date "2024.02.08"]
[Round "5.5"]
[White "Shanmathi Sree S"]
[Black "Nivedita V C"]
[Result "1/2-1/2"]
[ECO "C54"]
[WhiteElo "1527"]
[BlackElo "1609"]
[Annotator "NA"]
[PlyCount "102"]
[EventDate "2024.02.05"]
[EventCountry "IND"]
[SourceTitle "playchess.com"]
[Source "ChessBase"]
[SourceQuality "1"]
[TimeControl "5400+30"]

1. e4 {[%emt 0:01:58]} e5 {[%emt 0:00:04]} 2. Nf3 {[%emt 0:00:06]} Nc6 {[%emt 0:00:04]} 3. Bc4 {[%emt 0:00:04]} Bc5 {[%emt 0:00:04]} 4. c3 {[%emt 0:00:05]} Qe7 {[%emt 0:00:02]} 5. b4 {[%emt 0:00:29]} Bb6 {[%emt 0:00:12]} 6. O-O {[%emt 0:00:25]} Nf6 {[%emt 0:00:50]} 7. d3 {[%emt 0:00:24]} d6 {[%emt 0:03:00]} 8. a4 {[%emt 0:00:21]} a5 {[%emt 0:11:14]} 9. b5 {[%emt 0:00:51]} Nb8 {[%emt 0:02:31]} 10. Nbd2 {[%emt 0:03:09]} Be6 {[%emt 0:07:53]} 11. Re1 {[%emt 0:03:21]} Nbd7 {[%emt 1:10:06]} 12. d4 {[%emt 0:03:01]} Bxc4 {[%emt 0:00:00]} 13. Nxc4 {[%emt 0:00:20]} Qe6 {[%emt 0:00:00]} 14. Qd3 {[%emt 0:20:23]} O-O {[%emt 0:00:00]} 15. Nh4 {[%emt 0:11:52]} exd4 {[%emt 0:00:00]} 16. Nxb6 {[%emt 0:02:13]} Nxb6 {[%emt 0:00:00]} 17. cxd4 {[%emt 0:01:13]} Rfe8 {[%emt 0:00:00]} 18. f3 {[%emt 0:05:54]} Qc4 {[%emt 0:00:00]} 19. Qxc4 {[%emt 0:01:54]} Nxc4 {[%emt 0:00:00]} 20. Bg5 {[%emt 0:01:45]} Nd7 {[%emt 0:00:00]} 21. Rec1 {[%emt 0:03:21]} Ndb6 {[%emt 0:00:00]} 22. Nf5 {[%emt 0:01:43]} f6 {[%emt 0:00:00]} 23. Bf4 {[%emt 0:05:57]} g6 {[%emt 0:00:00]} 24. Nh6+ {[%emt 0:07:32]} Kg7 {[%emt 0:00:00]} 25. Ng4 {[%emt 0:02:47]} Re7 {[%emt 0:00:00]} 26. Ne3 {[%emt 0:02:54]} Nb2 {[%emt 0:00:00]} 27. Bg3 {[%emt 0:02:43]} N2xa4 {[%emt 0:00:24]} 28. Be1 {[%emt 0:01:12]} f5 {[%emt 0:02:00]} 29. Nc4 {[%emt 0:04:10]} Nxc4 {[%emt 0:01:49]} 30. Rxa4 {[%emt 0:00:44]} Nb6 {[%emt 0:01:47]} 31. Rxa5 {[%emt 0:01:48]} fxe4 {[%emt 0:00:56]} 32. fxe4 {[%emt 0:01:16]} Rxe4 {[%emt 0:01:22]} 33. Rxc7+ {[%emt 0:00:08]} Kf6 {[%emt 0:00:12]} 34. Bd2 {[%emt 0:07:18]} Rc8 {[%emt 0:00:27]} 35. Rxb7 {[%emt 0:02:52]} Nc4 {[%emt 0:00:24]} 36. Ra2 {[%emt 0:00:11]} Nxd2 {[%emt 0:00:04]} 37. Rxd2 {[%emt 0:00:05]} Rc1+ {[%emt 0:00:04]} 38. Kf2 {[%emt 0:00:15]} Rc4 {[%emt 0:00:13]} 39. Rxh7 {[%emt 0:01:50]} Rexd4 {[%emt 0:00:09]} 40. Rxd4 {[%emt 0:00:05]} Rxd4 {[%emt 0:00:04]} 41. b6 {[%emt 0:00:03]} Rb4 {[%emt 0:00:03]} 42. b7 {[%emt 0:00:04]} d5 {[%emt 0:01:12]} 43. Ke3 {[%emt 0:00:18]} Ke5 {[%emt 0:00:08]} 44. Re7+ {[%emt 0:00:57]} Kd6 {[%emt 0:00:06]} 45. Rg7 {[%emt 0:00:31]} Ke5 {[%emt 0:00:06]} 46. Kd3 {[%emt 0:00:44]} Rb3+ {[%emt 0:00:58]} 47. Kc2 {[%emt 0:00:16]} Rb6 {[%emt 0:00:03]} 48. Kc3 {[%emt 0:02:58]} Ke4 49. Re7+ {[%emt 0:00:30]} Kf5 {[%emt 0:06:29]} 50. Kd4 {[%emt 0:00:30]} Kf6 {[%emt 0:00:30]} 51. Rc7 {[%emt 0:00:30]} Rxb7 1/2-1/2

[Event "12th National Schools-ch 2024"]
[Site "Gyan Bhawan Patna"]
[Date "2024.02.08"]
[Round "5.6"]
[White "Vandan Alankar Sawai"]
[Black "Nimay Agrawal"]
[Result "1-0"]
[ECO "B01"]
[WhiteElo "1721"]
[BlackElo "2067"]
[Annotator "TA"]
[PlyCount "79"]
[EventDate "2024.02.05"]
[EventCountry "IND"]
[SourceTitle "playchess.com"]
[Source "ChessBase"]
[SourceQuality "1"]
[TimeControl "5400+30"]

{[%evp 9,79,29,41,42,58,24,18,25,58,45,77,81,103,96,99,95,102,83,113,131,139,133,145,145,157,88,144,103,183,85,85,68,79,84,274,251,265,276,574,573,776,370,363,321,660,658,1147,438,439,429,435,429,535,535,541,446,552,546,622,622,881,884,29967,29968,29994,29993,29993,5098,5098,4661,2046,1266]} 1. e4 {[%emt 0:00:16]} d5 {[%emt 0:00:36]} 2. exd5 {[%emt 0:00:35]} Qxd5 {[%emt 0:00:09]} 3. Nc3 {[%emt 0:00:14]} Qd6 {[%emt 0:00:21]} 4. d4 {[%emt 0:03:02]} Nf6 {[%emt 0:00:45]} 5. Bc4 {[%emt 0:03:39]} c6 {[%emt 0:01:04]} 6. Nge2 {[%emt 0:01:22]} Bf5 {[%emt 0:00:58]} 7. O-O {[%emt 0:01:12]} e6 {[%emt 0:01:35]} 8. Bf4 {[%emt 0:01:03] The position is equal.} Qb4 {[%emt 0:01:29]} 9. Bb3 {[%emt 0:00:27]} Be7 {[%emt 0:00:24]} 10. Bc7 {[%emt 0:03:01]} Bf8 {[%emt 0:19:55]} 11. Ng3 {[%emt 0:00:20]} Bg6 {[%emt 0:00:42]} 12. f4 {[%emt 0:00:28] [#] Threatens to win with f5.} Na6 {[%emt 0:03:02]} 13. Be5 {[%emt 0:00:46]} O-O-O {[%emt 0:03:30]} 14. f5 {[%emt 0:08:18]} exf5 {[%emt 0:01:05]} 15. Nxf5 {[%emt 0:01:06]} Bxf5 {[%emt 0:02:38]} 16. Rxf5 {[%emt 0:00:13]} Bd6 {[%emt 0:00:22]} 17. Qf3 {[%emt 0:03:21]} (17. Bxf7 Bxe5 18. Rxe5 Rxd4 $11) (17. Bxf6 $142 gxf6 18. Ne4 (18. Bxf7 Be5 $11)) 17... Rhe8 {[%emt 0:11:18]} (17... Bxe5 $142 18. dxe5 Nd7) 18. Kh1 {[%emt 0:10:32] White is more active.} (18. Bxf7 Bxe5 19. dxe5 Qd4+ (19... Qc5+ 20. Kh1 $16) 20. Qf2 Qxf2+ 21. Kxf2 Re7 (21... Ng4+ 22. Kg1 $15) 22. exf6 Rxf7 $14) 18... Re7 {[%emt 0:11:17]} (18... Bxe5 $16 {was called for.} 19. dxe5 Nd7) 19. Rf1 {[%emt 0:15:38]} (19. Bxf6 $18 {has better winning chances.} gxf6 20. Rd1 (20. Rxf6 Qxd4 21. g3 Nc5 $16)) 19... Bxe5 $16 {[%emt 0:09:22]} 20. dxe5 {[%emt 0:00:07]} Nd7 {[%emt 0:00:54]} 21. Qh3 {[%emt 0:05:44]} (21. Bxf7 Nxe5 22. Qg3 Qg4 $11) 21... Kb8 $2 {[%emt 0:03:25] [#] Loses the game.} (21... Qd4 $16) 22. Qg3 $1 $18 {[%emt 0:01:17]} (22. Bxf7 Nxe5 23. Qg3 Qg4 $11) (22. Qxh7 f6 $16) 22... Nc7 {[%emt 0:02:10]} 23. a3 {[%emt 0:02:30]} (23. Qxg7 $6 f6 24. Qg3 Nxe5 $18) (23. Bxf7 g6 24. R5f4 Qxb2 $16) (23. Rxf7 $6 Nxe5 24. Rxg7 Ng6 25. Rxe7 Qxe7 $18) 23... Qc5 {[%emt 0:03:14]} (23... Qb6 24. Rxf7 (24. Bxf7 Qxb2 25. Qh4 Qxa3 $18) 24... Rxf7 25. Bxf7 (25. Rxf7 Qc5 $18) 25... Qxb2) 24. e6 $1 {[%emt 0:01:06]} ({Stronger than} 24. Bxf7 Rxe5 25. R5f3 Rg5 $11) (24. Rxf7 Rxf7 25. Rxf7 Nxe5 $11) (24. Qxg7 Nxe5 25. Qxh7 Nb5 26. Nxb5 (26. Bxf7 $2 {perishes.} Nd6 $19) 26... cxb5 $18) 24... Qb6 {[%emt 0:03:47]} 25. exd7 {[%emt 0:00:25]} (25. Qd6 $142) 25... f6 {[%emt 0:00:38]} 26. Na4 {[%emt 0:00:43][%cal Bc3a4,Ba4c5,Bc5d3,Bd3e5][%mdl 32]} Qd4 {[%emt 0:01:15]} (26... Qe3 27. Qxe3 Rxe3) 27. Nc5 {[%emt 0:00:12]} g6 {[%emt 0:01:28]} 28. Qf2 {[%emt 0:01:49]} (28. c3 $142 Qd2 29. Rxf6) 28... Qxf2 {[%emt 0:01:46]} 29. R5xf2 {[%emt 0:00:05]} b6 {[%emt 0:00:12]} 30. Nd3 {[%emt 0:00:32]} Rexd7 {[%emt 0:00:25][%cal Be7d7,Bd7d2,Bd2e2][%mdl 32]} 31. Rxf6 {[%emt 0:00:06][%cal Od3e5] Strongly threatening Ne5!} Kb7 {[%emt 0:01:45]} 32. h3 {[%emt 0:00:10]} c5 {[%emt 0:01:03]} 33. Ne5 {[%emt 0:00:40]} Rd2 {[%emt 0:00:36]} 34. Rf7 {[%emt 0:00:17]} Re2 {[%emt 0:00:19]} 35. Re7 {[%emt 0:02:30][%cal Of1f7] Rff7! would now be deadly.} Kc8 {[%emt 0:02:10]} 36. Rff7 {[%emt 0:00:18]} Nd5 {[%emt 0:00:20]} 37. Bxd5 {[%emt 0:00:19]} Rxd5 {[%emt 0:00:07]} 38. Rf8+ {[%emt 0:00:04]} (38. Rxa7 $142 Re1+ 39. Kh2 Rh1+ 40. Kxh1 Rd1+ 41. Kh2 Rh1+ 42. Kxh1 Kb8 43. Nc6+ Kc8 44. Rf8#) 38... Rd8 {[%emt 0:00:06]} 39. Rxd8+ {[%emt 0:00:06]} Kxd8 {[%emt 0:00:04]} 40. Nc6+ {[%emt 0:00:05] Weighted Error Value: White=0.64/Black=0.59.  Loses game:     	---       	Black=1      Mistake:       	White=3     	Black=4      Inaccurate:     	White=1     	Black=6      OK:         	White=10    	Black=4      Best:        	White=1     	Black=4      Strong:       	White=2     	---} 1-0

[Event "12th National Schools-ch 2024"]
[Site "Gyan Bhawan Patna"]
[Date "2024.02.08"]
[Round "5.7"]
[White "Aadya Gupta"]
[Black "Singh Myra"]
[Result "1/2-1/2"]
[ECO "D37"]
[WhiteElo "1544"]
[BlackElo "1511"]
[Annotator "NA RC"]
[PlyCount "80"]
[EventDate "2024.02.05"]
[EventCountry "IND"]
[SourceTitle "playchess.com"]
[Source "ChessBase"]
[SourceQuality "1"]
[TimeControl "5400+30"]

1. d4 {[%emt 0:00:43]} d5 {[%emt 0:00:08]} 2. c4 {[%emt 0:00:08]} e6 {[%emt 0:00:04]} 3. Nf3 {[%emt 0:00:08]} Nf6 {[%emt 0:00:05]} 4. Nc3 {[%emt 0:00:03]} Be7 {[%emt 0:01:59]} 5. Bf4 {[%emt 0:00:05]} b6 {[%emt 0:01:06]} 6. a3 {[%emt 0:00:27]} O-O {[%emt 0:00:16]} 7. e3 {[%emt 0:00:18]} Bb7 {[%emt 0:00:36]} 8. Bd3 {[%emt 0:02:16]} dxc4 {[%emt 0:00:07]} 9. Bxc4 {[%emt 0:00:04]} Nbd7 {[%emt 0:01:39]} 10. Qe2 {[%emt 0:01:08]} Nd5 {[%emt 0:02:57]} 11. Bg3 {[%emt 0:02:17]} N7f6 {[%emt 0:00:32]} 12. Bd3 {[%emt 0:02:35]} Nxc3 {[%emt 0:09:23]} 13. bxc3 {[%emt 0:00:06]} Bd6 {[%emt 0:02:04]} 14. e4 {[%emt 0:02:09]} Be7 {[%emt 0:02:37]} 15. O-O {[%emt 0:02:06]} c5 {[%emt 0:09:54]} 16. a4 {[%emt 0:05:55]} Qc8 {[%emt 0:21:18]} 17. Bh4 {[%emt 0:16:00]} Re8 {[%emt 0:01:51]} 18. Ne5 {[%emt 0:04:35]} Qc7 {[%emt 0:12:23]} 19. f4 {[%emt 0:04:25]} Rad8 {[%emt 0:09:53]} 20. Rac1 {[%emt 0:02:03]} c4 {[%emt 0:03:13]} 21. Bb1 {[%emt 0:04:14]} Rc8 {[%emt 0:02:15]} 22. Rf3 {[%emt 0:02:59]} Nd7 {[%emt 0:06:15]} 23. Bxe7 {[%emt 0:09:49]} Nxe5 {[%emt 0:01:37]} 24. fxe5 {[%emt 0:00:36]} Qxe7 {[%emt 0:00:17]} 25. Rcf1 {[%emt 0:00:49]} Rf8 {[%emt 0:00:10]} 26. Rh3 {[%emt 0:03:52]} g6 {[%emt 0:05:21]} 27. Rhf3 {[%emt 0:07:01]} Bc6 {[%emt 0:01:18]} 28. Qe3 {[%emt 0:01:42]} Kg7 {[%emt 0:00:59]} 29. Rh3 {[%emt 0:01:47]} Rh8 {[%emt 0:00:37]} 30. Qh6+ {[%emt 0:00:51]} Kg8 {[%emt 0:00:08]} 31. Bc2 {[%emt 0:01:12]} a6 {[%emt 0:01:33]} 32. Rhf3 {[%emt 0:03:05]} Be8 {[%emt 0:01:05]} 33. h4 {[%emt 0:01:03]} Qf8 {[%emt 0:01:31]} 34. Qf4 {[%emt 0:00:16]} h5 {[%emt 0:00:24]} 35. Kh2 {[%emt 0:00:49]} Qe7 {[%emt 0:00:46]} 36. d5 {[%emt 0:01:01]} Rh7 {[%emt 0:00:27]} 37. Rd1 {[%emt 0:03:12]} Bd7 {[%emt 0:00:49]} 38. Rb1 {[%emt 0:01:44]} b5 {[%emt 0:01:04]} 39. axb5 {[%emt 0:00:27]} axb5 {[%emt 0:00:06]} 40. Ra1 {[%emt 0:01:36]} exd5 {[%emt 0:00:11]} 1/2-1/2

[Event "12th National Schools-ch 2024"]
[Site "Gyan Bhawan Patna"]
[Date "2024.02.08"]
[Round "5.8"]
[White "Arnav Agrawal"]
[Black "Sai Krishna Rohit M V"]
[Result "1-0"]
[ECO "E32"]
[WhiteElo "1610"]
[BlackElo "1469"]
[Annotator "NA RC"]
[PlyCount "75"]
[EventDate "2024.02.05"]
[EventCountry "IND"]
[SourceTitle "playchess.com"]
[Source "ChessBase"]
[SourceQuality "1"]
[TimeControl "5400+30"]

1. d4 {[%emt 0:00:04]} Nf6 {[%emt 0:01:38]} 2. c4 {[%emt 0:00:06]} e6 {[%emt 1:29:52]} 3. Nc3 {[%emt 0:00:07]} Bb4 {[%emt 0:00:00]} 4. Qc2 {[%emt 0:00:08]} d5 {[%emt 0:00:00]} 5. cxd5 {[%emt 0:00:31]} exd5 {[%emt 0:00:00]} 6. Nf3 {[%emt 0:00:11]} O-O {[%emt 0:00:00]} 7. Bg5 {[%emt 0:00:06]} h6 {[%emt 0:00:00]} 8. Bh4 {[%emt 0:00:06]} Re8 {[%emt 0:00:00]} 9. e3 {[%emt 0:00:08]} Be6 {[%emt 0:00:00]} 10. Bd3 {[%emt 0:03:28]} c5 {[%emt 0:00:00]} 11. dxc5 {[%emt 0:01:16]} Nbd7 {[%emt 0:00:00]} 12. a3 {[%emt 0:02:46]} Bxc5 {[%emt 0:00:00]} 13. O-O {[%emt 0:00:13]} Rc8 {[%emt 0:00:00]} 14. Rad1 {[%emt 0:03:15]} Kh8 {[%emt 0:00:00]} 15. h3 {[%emt 0:12:47]} a6 {[%emt 0:00:00]} 16. Rd2 {[%emt 0:10:12]} Bd6 {[%emt 0:00:00]} 17. Nd4 {[%emt 0:06:09]} g5 {[%emt 0:00:00]} 18. Bg3 {[%emt 0:00:14]} Nc5 {[%emt 0:00:00]} 19. Bxd6 {[%emt 0:01:07]} Qxd6 {[%emt 0:00:00]} 20. Rfd1 {[%emt 0:00:42]} Rcd8 {[%emt 0:00:00]} 21. Bf5 {[%emt 0:07:31]} Qe5 {[%emt 0:00:00]} 22. Bxe6 {[%emt 0:01:12]} Nxe6 {[%emt 0:00:24]} 23. Nf3 {[%emt 0:00:37]} Qc7 {[%emt 0:03:41]} 24. Qf5 {[%emt 0:00:23]} Qe7 {[%emt 0:00:35]} 25. Nxd5 {[%emt 0:01:17]} Nxd5 {[%emt 0:00:12]} 26. Rxd5 {[%emt 0:00:06]} Rxd5 {[%emt 0:00:08]} 27. Rxd5 {[%emt 0:00:06]} Rd8 {[%emt 0:02:24]} 28. Qe5+ {[%emt 0:00:24]} Kg8 {[%emt 0:00:35]} 29. e4 {[%emt 0:00:21]} Rc8 {[%emt 0:00:56]} 30. Nd4 {[%emt 0:01:23]} Rc1+ {[%emt 0:00:59]} 31. Kh2 {[%emt 0:00:06]} Rc8 {[%emt 0:03:34]} 32. Nf5 {[%emt 0:00:13]} Qc7 {[%emt 0:00:13]} 33. Rd6 {[%emt 0:01:02]} Re8 {[%emt 0:00:49]} 34. Qf6 {[%emt 0:00:51]} Rd8 {[%emt 0:00:42]} 35. Ne7+ {[%emt 0:00:25]} Kf8 {[%emt 0:00:22]} 36. Ng6+ {[%emt 0:00:06]} Ke8 {[%emt 0:00:25]} 37. Qh8+ {[%emt 0:00:06]} Nf8 {[%emt 0:00:08]} 38. Qxf8# {[%emt 0:00:04]} 1-0